fUSD/lending_fUSD_20251017
["ID","MTS","AMOUNT","RATE_DAILY","PERIOD"]
[391689056,1760729457269,-500.0,0.00044109,120]
[391689057,1760729457279,-500.0,0.00044109,120]
[391689058,1760729457289,-500.0,0.00044109,120]
[391689059,1760729457299,-500.0,0.00044109,120]
[391689060,1760729457309,-500.0,0.00044109,120]
[391689061,1760729457319,-500.0,0.00044109,2]
[391689062,1760729457334,-842.71,0.00044109,120]
[391689063,1760729457344,-500.0,0.00044109,120]
[391689064,1760729457353,-500.0,0.00044109,120]
[391689065,1760729457363,-500.0,0.00044109,120]
[391689066,1760729457372,-500.0,0.00044109,120]
[391689067,1760729457382,-500.0,0.00044109,120]
[391689068,1760729457392,-500.0,0.00044109,120]
[391689069,1760729457402,-500.0,0.00044109,120]
[391689070,1760729457412,-500.0,0.00044109,120]
[391689071,1760729457422,-500.0,0.00044109,120]
[391689072,1760729457438,-500.0,0.00044109,120]
[391689073,1760729457447,-568.23,0.00044109,120]
[391689074,1760729457457,-500.0,0.00044109,2]
[391689075,1760729457466,-500.0,0.00044109,120]
[391689076,1760729457477,-500.0,0.00044109,120]
[391689077,1760729457487,-500.0,0.00044109,120]
[391689078,1760729457496,-500.0,0.00044109,2]
[391689079,1760729457506,-500.0,0.00044109,120]
[391689080,1760729457515,-500.0,0.00044109,120]
[391689081,1760729457525,-500.0,0.00044109,120]
[391689082,1760729457535,-500.0,0.00044109,120]
[391689083,1760729457544,-500.0,0.00044109,120]
[391689084,1760729457554,-500.0,0.00044109,120]
[391689085,1760729457564,-514.4,0.00044109,120]
[391689086,1760729457574,-500.0,0.00044109,120]
[391689087,1760729457583,-531.70048513,0.00044109,120]
[391689088,1760729457593,-500.0,0.00044109,6]
[391689089,1760729457602,-500.0,0.00044109,120]
[391689090,1760729457612,-500.0,0.00044109,120]
[391689091,1760729457622,-500.0,0.00044109,120]
[391689092,1760729457632,-500.0,0.00044109,120]
[391689093,1760729457642,-500.0,0.00044109,120]
[391689094,1760729457651,-500.0,0.00044109,120]
[391689095,1760729457661,-500.0,0.00044109,120]
[391689096,1760729457673,-500.0,0.00044109,120]
[391689097,1760729457683,-500.0,0.00044109,120]
[391689098,1760729457693,-500.0,0.00044109,120]
[391689099,1760729457702,-500.0,0.00044109,120]
[391689100,1760729457712,-620.58,0.00044109,120]
[391689101,1760729457721,-500.0,0.00044109,120]
[391689102,1760729457730,-500.0,0.00044109,120]
[391689103,1760729457740,-500.0,0.00044109,120]
[391689104,1760729457750,-622.37310389,0.00044109,120]
[391689105,1760729457759,-500.0,0.00044109,120]
[391689106,1760729457768,-500.0,0.00044109,120]
[391689107,1760729457778,-583.96,0.00044109,120]
[391689108,1760729457789,-500.0,0.00044109,14]
[391689109,1760729457799,-500.0,0.00044109,120]
[391689110,1760729457808,-500.0,0.00044109,120]
[391689111,1760729457818,-500.0,0.00044109,60]
[391689112,1760729457826,-500.0,0.00044109,120]
[391689113,1760729457835,-500.0,0.00044109,120]
[391689114,1760729457845,-500.0,0.00044109,120]
[391689115,1760729457854,-500.0,0.00044109,120]
[391689116,1760729457864,-500.0,0.00044109,120]
[391689117,1760729457874,-500.0,0.00044109,120]
[391689118,1760729457883,-337.87,0.00044109,120]
[391689119,1760729457892,-300.0,0.00044109,2]
[391689120,1760729457902,-500.0,0.00044109,120]
[391689121,1760729457911,-500.0,0.00044109,120]
[391689122,1760729457922,-500.0,0.00044109,30]
[391689123,1760729457931,-500.0,0.00044109,120]
[391689124,1760729457941,-500.0,0.00044109,120]
[391689125,1760729457951,-500.0,0.00044109,120]
[391689126,1760729457961,-500.0,0.00044109,16]
[391689127,1760729457971,-500.0,0.00044109,120]
[391689128,1760729457981,-500.0,0.00044109,120]
[391689129,1760729457990,-210.02017578,0.00044109,120]
[391689130,1760729458001,-500.0,0.00044109,120]
[391689131,1760729458011,-431.964254,0.00044109,120]
[391689132,1760729458022,-500.0,0.00044109,120]
[391689133,1760729458031,-500.0,0.00044109,120]
[391689134,1760729458041,-500.0,0.00044109,120]
[391689135,1760729458051,-500.0,0.00044109,120]
[391689136,1760729458061,-500.0,0.00044109,120]
[391689137,1760729458071,-2514.88,0.00044109,120]
[391689138,1760729458082,-500.0,0.00044109,120]
[391689139,1760729458091,-531.34,0.00044109,120]
[391689140,1760729458101,-500.0,0.00044109,120]
[391689141,1760729458111,-500.0,0.00044109,120]
[391689142,1760729458120,-500.0,0.00044109,30]
[391689143,1760729458130,-500.0,0.00044109,120]
[391689144,1760729458142,-642.86485994,0.00044109,120]
[391689145,1760729458151,-1000.0,0.00044109,120]
[391689146,1760729458160,-500.0,0.00044109,120]
[391689147,1760729458170,-500.0,0.00044109,120]
[391689148,1760729458181,-424.6999227,0.00044109,120]
[391689149,1760729458190,-500.0,0.00044109,120]
[391689150,1760729458199,-500.0,0.00044109,120]
[391689151,1760729458209,-500.0,0.00044109,120]
[391689152,1760729458219,-500.0,0.00044109,120]
[391689153,1760729458229,-500.0,0.00044109,120]
[391689154,1760729458239,-500.0,0.00044109,120]
[391689155,1760729458248,-500.0,0.00044109,120]
[391689156,1760729458258,-500.0,0.00044109,120]
[391689157,1760729458268,-500.0,0.00044109,120]
[391689158,1760729458277,-500.0,0.00044109,120]
[391689159,1760729458286,-500.0,0.00044109,120]
[391689160,1760729458295,-500.0,0.00044109,120]
[391689161,1760729458305,-500.0,0.00044109,120]
[391689162,1760729458315,-500.0,0.00044109,120]
[391689163,1760729458324,-500.0,0.00044109,120]
[391689164,1760729458333,-500.0,0.00044109,120]
[391689165,1760729458345,-500.0,0.00044109,120]
[391689166,1760729458354,-500.0,0.00044109,120]
[391689167,1760729458364,-500.0,0.00044109,120]
[391689168,1760729458375,-500.0,0.00044109,120]
[391689169,1760729458384,-500.0,0.00044109,120]
[391689170,1760729458393,-500.0,0.00044109,120]
[391689171,1760729458403,-500.0,0.0004411,2]
[391689172,1760729458413,-500.0,0.0004411,2]
[391689173,1760729458423,-360.80223538,0.0004411,2]
[391689174,1760729458435,-730.0,0.0004411,2]
[391689175,1760729458444,-500.0,0.0004411,2]
[391689176,1760729458453,-500.0,0.0004411,2]
[391689177,1760729458463,-1982.0,0.0004411,2]
[391689178,1760729458474,-500.0,0.0004411,2]
[391689179,1760729458484,-1152.0,0.0004411,2]
[391689180,1760729458493,-150.0,0.00044121,30]
[391689181,1760729458503,-150.0,0.00044121,30]
[391689182,1760729458513,-150.0,0.00044139,30]
[391689183,1760729458523,-828.368428,0.0004414,2]
[391689184,1760729458532,-500.0,0.00044164,2]
[391689185,1760729458541,-500.0,0.00044164,2]
[391689186,1760729458551,-730.0,0.00044164,2]
[391689187,1760729458560,-500.0,0.00044164,2]
[391689188,1760729458570,-500.0,0.00044164,2]
[391689189,1760729458580,-1982.0,0.00044164,2]
[391689190,1760729458589,-500.0,0.00044164,2]
[391689191,1760729458599,-1152.0,0.00044164,2]
[391689192,1760729458609,-150.0,0.00044168,30]
[391689193,1760729458618,-150.0,0.00044192,30]
[391689194,1760729458627,-150.0,0.00044204,30]
[391689195,1760729458637,-500.0,0.00044219,2]
[391689196,1760729458646,-500.0,0.00044219,2]
[391689197,1760729458655,-730.0,0.00044219,2]
[391689198,1760729458665,-500.0,0.00044219,2]
[391689199,1760729458675,-500.0,0.00044219,2]
[391689200,1760729458685,-1982.0,0.00044219,2]
[391689201,1760729458695,-500.0,0.00044219,2]
[391689202,1760729458705,-1152.0,0.00044219,2]
[391689203,1760729458714,-150.0,0.00044269,30]
[391689204,1760729458724,-500.0,0.00044274,2]
[391689205,1760729458733,-500.0,0.00044274,2]
[391689206,1760729458742,-730.0,0.00044274,2]
[391689207,1760729458751,-500.0,0.00044274,2]
[391689208,1760729458761,-152.53651065,0.00044274,2]
[391689209,1760729458770,-1982.0,0.00044274,2]
[391689210,1760729458779,-500.0,0.00044274,2]
[391689211,1760729458789,-1152.0,0.00044274,2]
[391689212,1760729458798,-150.0,0.00044276,30]
[391689213,1760729458807,-150.0,0.00044294,30]
[391689214,1760729458816,-150.0,0.00044294,30]
[391689215,1760729458826,-150.0,0.00044294,30]
[391689216,1760729458835,-150.0,0.00044312,30]
[391689217,1760729458845,-150.0,0.00044325,30]
[391689218,1760729458854,-500.0,0.00044329,2]
[391689219,1760729458864,-500.0,0.00044329,2]
[391689220,1760729458873,-730.0,0.00044329,2]
[391689221,1760729458883,-500.0,0.00044329,2]
[391689222,1760729458893,-1982.0,0.00044329,2]
[391689223,1760729458902,-500.0,0.00044329,2]
[391689224,1760729458912,-1152.0,0.00044329,2]
[391689225,1760729458921,-150.0,0.00044334,30]
[391689226,1760729458930,-154.99415888,0.00044368,19]
[391689227,1760729458940,-500.0,0.00044383,120]
[391689228,1760729458949,-500.0,0.00044383,120]
[391689229,1760729458958,-500.0,0.00044383,120]
[391689230,1760729458968,-500.0,0.00044383,120]
[391689231,1760729458978,-500.0,0.00044383,120]
[391689232,1760729458988,-500.0,0.00044383,120]
[391689233,1760729458997,-500.0,0.00044383,120]
[391689234,1760729459008,-500.0,0.00044383,120]
[391689235,1760729459018,-500.0,0.00044383,120]
[391689236,1760729459027,-500.0,0.00044383,120]
[391689237,1760729459037,-500.0,0.00044383,120]
[391689238,1760729459047,-300.0,0.00044383,120]
[391689239,1760729459057,-500.0,0.00044383,120]
[391689240,1760729459066,-500.0,0.00044383,120]
[391689241,1760729459076,-500.0,0.00044383,120]
[391689242,1760729459085,-500.0,0.00044383,120]
[391689243,1760729459095,-500.0,0.00044383,120]
[391689244,1760729459104,-500.0,0.00044383,120]
[391689245,1760729459115,-500.0,0.00044383,120]
[391689246,1760729459124,-505.12,0.00044383,120]
[391689247,1760729459134,-500.0,0.00044383,120]
[391689248,1760729459143,-606.88400911,0.00044383,120]
[391689249,1760729459153,-500.0,0.00044383,120]
[391689250,1760729459162,-500.0,0.00044383,120]
[391689251,1760729459173,-500.0,0.00044383,120]
[391689252,1760729459183,-500.0,0.00044383,120]
[391689253,1760729459192,-500.0,0.00044383,120]
[391689254,1760729459202,-500.0,0.00044383,120]
[391689255,1760729459211,-511.98081256,0.00044383,120]
[391689256,1760729459221,-500.0,0.00044383,120]
[391689257,1760729459232,-500.0,0.00044383,120]
[391689258,1760729459241,-500.0,0.00044383,120]
[391689259,1760729459251,-500.0,0.00044383,120]
[391689260,1760729459261,-500.0,0.00044383,7]
[391689261,1760729459270,-500.0,0.00044383,120]
[391689262,1760729459280,-500.0,0.00044383,120]
[391689263,1760729459290,-500.0,0.00044383,120]
[391689264,1760729459300,-500.0,0.00044383,120]
[391689265,1760729459310,-500.0,0.00044383,120]
[391689266,1760729459319,-500.0,0.00044383,120]
[391689267,1760729459329,-500.0,0.00044383,120]
[391689268,1760729459338,-500.0,0.00044383,120]
[391689269,1760729459347,-500.0,0.00044383,120]
[391689270,1760729459357,-500.0,0.00044383,120]
[391689271,1760729459367,-500.0,0.00044383,120]
[391689272,1760729459376,-500.0,0.00044383,120]
[391689273,1760729459385,-500.0,0.00044383,2]
[391689274,1760729459395,-842.71,0.00044383,120]
[391689275,1760729459404,-500.0,0.00044383,120]
[391689276,1760729459413,-500.0,0.00044383,120]
[391689277,1760729459424,-500.0,0.00044383,120]
[391689278,1760729459436,-500.0,0.00044383,120]
[391689279,1760729459446,-261.99,0.00044383,120]
[391689280,1760729459456,-327.74,0.00044383,120]
[391689281,1760729459466,-201.29735148,0.00044383,120]
[391689282,1760729459476,-500.0,0.00044383,120]
[391689283,1760729459485,-500.0,0.00044383,120]
[391689284,1760729459495,-568.23,0.00044383,120]
[391689285,1760729459506,-500.0,0.00044383,2]
[391689286,1760729459515,-500.0,0.00044383,120]
[391689287,1760729459525,-581.53211688,0.00044383,120]
[391689288,1760729459534,-500.0,0.00044383,2]
[391689289,1760729459544,-500.0,0.00044383,120]
[391689290,1760729459554,-500.0,0.00044383,120]
[391689291,1760729459563,-179.92344858,0.00044383,120]
[391689292,1760729459573,-500.0,0.00044383,120]
[391689293,1760729459582,-500.0,0.00044383,120]
[391689294,1760729459592,-514.4,0.00044383,120]
[391689295,1760729459602,-500.0,0.00044383,120]
[391689296,1760729459759,-500.0,0.00044383,6]
[391689297,1760729459769,-500.0,0.00044383,120]
[391689298,1760729459779,-500.0,0.00044383,120]
[391689299,1760729459788,-500.0,0.00044383,120]
[391689300,1760729459797,-500.0,0.00044383,120]
[391689301,1760729459807,-500.0,0.00044383,120]
[391689302,1760729459817,-500.0,0.00044383,120]
[391689303,1760729459826,-500.0,0.00044383,120]
[391689304,1760729459836,-500.0,0.00044383,120]
[391689305,1760729459846,-620.58,0.00044383,120]
[391689306,1760729459856,-217.42029736,0.00044383,120]
[391689307,1760729459866,-400.76150999,0.00044383,120]
[391689308,1760729459875,-500.0,0.00044383,120]
[391689309,1760729459885,-345.11768979,0.00044383,120]
[391689310,1760729459895,-500.0,0.00044383,14]
[391689311,1760729459905,-500.0,0.00044383,120]
[391689312,1760729459915,-500.0,0.00044383,120]
[391689313,1760729459925,-500.0,0.00044383,60]
[391689314,1760729459935,-500.0,0.00044383,120]
[391689315,1760729459944,-549.57107671,0.00044383,120]
[391689316,1760729459954,-300.0,0.00044383,2]
[391689317,1760729459963,-637.8,0.00044383,120]
[391689318,1760729459973,-500.0,0.00044383,120]
[391689319,1760729459983,-500.0,0.00044383,30]
[391689320,1760729459993,-490.25,0.00044383,120]
[391689321,1760729460002,-587.02706466,0.00044383,120]
[391689322,1760729460012,-500.0,0.00044383,120]
[391689323,1760729460022,-500.0,0.00044383,16]
[391689324,1760729460032,-500.0,0.00044383,120]
[391689325,1760729460041,-500.0,0.00044383,120]
[391689326,1760729460052,-500.0,0.00044383,120]
[391689327,1760729460062,-500.0,0.00044383,120]
[391689328,1760729460071,-500.0,0.00044383,120]
[391689329,1760729460082,-500.0,0.00044383,120]
[391689330,1760729460092,-2514.88,0.00044383,120]
[391689331,1760729460102,-500.0,0.00044383,120]
[391689332,1760729460111,-531.34,0.00044383,120]
[391689333,1760729460121,-500.0,0.00044383,120]
[391689334,1760729460131,-500.0,0.00044383,120]
[391689335,1760729460142,-500.0,0.00044383,30]
[391689336,1760729460152,-500.0,0.00044383,120]
[391689337,1760729460161,-1000.0,0.00044383,120]
[391689338,1760729460171,-302.98599027,0.00044383,120]
[391689339,1760729460181,-500.0,0.00044383,120]
[391689340,1760729460191,-500.0,0.00044383,120]
[391689341,1760729460201,-500.0,0.00044383,120]
[391689342,1760729460211,-500.0,0.00044383,120]
[391689343,1760729460221,-500.0,0.00044383,120]
[391689344,1760729460231,-500.0,0.00044383,120]
[391689345,1760729460241,-500.0,0.00044383,120]
[391689346,1760729460251,-500.0,0.00044383,120]
[391689347,1760729460261,-500.0,0.00044383,120]
[391689348,1760729460272,-500.0,0.00044383,120]
[391689349,1760729460281,-500.0,0.00044383,120]
[391689350,1760729460291,-500.0,0.00044383,120]
[391689351,1760729460301,-500.0,0.00044383,120]
[391689352,1760729460310,-500.0,0.00044383,120]
[391689353,1760729460319,-500.0,0.00044383,120]
[391689354,1760729460328,-500.0,0.00044383,120]
[391689355,1760729460338,-500.0,0.00044383,120]
[391689356,1760729460348,-500.0,0.00044383,120]
[391689357,1760729460358,-501.5293171,0.00044383,120]
[391689358,1760729460367,-500.0,0.00044383,120]
[391689359,1760729460377,-500.0,0.00044383,120]
[391689360,1760729460386,-500.0,0.00044384,2]
[391689361,1760729460395,-154.0,0.00044384,2]
[391689362,1760729460405,-730.0,0.00044384,2]
[391689363,1760729460415,-500.0,0.00044384,2]
[391689364,1760729460428,-1982.0,0.00044384,2]
[391689365,1760729460437,-500.0,0.00044384,2]
[391689366,1760729460447,-1152.0,0.00044384,2]
[391689367,1760729460456,-150.0,0.00044386,30]
[391689368,1760729460466,-150.0,0.000444,30]
[391689369,1760729460477,-55555.0,0.0004441,60]
[391689370,1760729460486,-500.0,0.00044438,2]
[391689371,1760729460496,-730.0,0.00044438,2]
[391689372,1760729460508,-500.0,0.00044438,2]
[391689373,1760729460518,-1982.0,0.00044438,2]
[391689374,1760729460527,-500.0,0.00044438,2]
[391689375,1760729460537,-1152.0,0.00044438,2]
[391689376,1760729460546,-150.0,0.00044457,30]
[391689377,1760729460556,-150.0,0.00044465,30]
[391689378,1760729460566,-56053.1364268,0.00044466,30]
[391689379,1760729460575,-150.0,0.00044467,30]
[391689380,1760729460584,-150.0,0.00044467,30]
[391689381,1760729460594,-150.0,0.00044486,30]
[391689382,1760729460603,-500.0,0.00044493,2]
[391689383,1760729460612,-730.0,0.00044493,2]
[391689384,1760729460622,-500.0,0.00044493,2]
[391689385,1760729460632,-1982.0,0.00044493,2]
[391689386,1760729460641,-500.0,0.00044493,2]
[391689387,1760729460650,-1152.0,0.00044493,2]
[391689388,1760729460659,-379.15391377,0.000445,120]
[391689389,1760729460668,-151.0,0.000445,120]
[391689390,1760729460678,-150.0,0.00044513,30]
[391689391,1760729460687,-150.0,0.0004453,30]
[391689392,1760729460697,-150.0,0.00044536,30]
[391689393,1760729460707,-48357.25656197,0.0004454,2]
[391689394,1760729460716,-151.0,0.0004454,30]
[391689395,1760729460726,-151.0,0.0004454,14]
[391689396,1760729460735,-151.0,0.0004454,120]
[391689397,1760729460746,-279.889391,0.0004454,14]
[391689398,1760729460755,-151.0,0.0004454,120]
[391689399,1760729460765,-151.0,0.0004454,120]
[391689400,1760729460774,-151.0,0.0004454,120]
[391689401,1760729460784,-151.0,0.0004454,120]
[391689402,1760729460794,-199.096247,0.0004454,120]
[391689403,1760729460803,-151.0,0.0004454,120]
[391689404,1760729460812,-151.0,0.0004454,120]
[391689405,1760729460821,-885.82923,0.0004454,120]
[391689406,1760729460831,-151.0,0.0004454,120]
[391689407,1760729460841,-885.82923,0.0004454,120]
[391689408,1760729460861,-151.0,0.0004454,120]
[391689409,1760729460872,-885.82923,0.0004454,120]
[391689410,1760729460882,-192.780445,0.0004454,120]
[391689411,1760729460892,-885.82923,0.0004454,120]
[391689412,1760729460902,-192.780445,0.0004454,120]
[391689413,1760729460911,-151.0,0.0004454,120]
[391689414,1760729460920,-151.0,0.0004454,120]
[391689415,1760729460930,-192.780445,0.0004454,120]
[391689416,1760729460939,-151.0,0.0004454,120]
[391689417,1760729460949,-192.780445,0.0004454,120]
[391689418,1760729460958,-151.0,0.0004454,120]
[391689419,1760729460968,-151.0,0.0004454,120]
[391689420,1760729460978,-819.892489,0.0004454,120]
[391689421,1760729460988,-819.892489,0.0004454,120]
[391689422,1760729460997,-819.892489,0.0004454,120]
[391689423,1760729461007,-819.892489,0.0004454,120]
[391689424,1760729461016,-500.0,0.00044548,2]
[391689425,1760729461026,-730.0,0.00044548,2]
[391689426,1760729461036,-360.07321422,0.00044548,2]
[391689427,1760729461045,-1982.0,0.00044548,2]
[391689428,1760729461055,-500.0,0.00044548,2]
[391689429,1760729461064,-1152.0,0.00044548,2]
[391689430,1760729461074,-31314.81650842,0.0004455,120]
[391689431,1760729461084,-150.0,0.00044577,30]
[391689432,1760729461094,-151.0,0.00044589,120]
[391689433,1760729461103,-150.0,0.00044589,30]
[391689434,1760729461112,-141012.49951217,0.00044592,2]
[391689435,1760729461562,-151.0,0.00032031,30]
[391689436,1760729461572,-284.22115147,0.00032031,30]
[391689437,1760729461583,-13.72456053,0.00032031,30]
[391689438,1760729461592,-283.264368,0.00032031,30]
[391689439,1760729461601,-520.32542131,0.00032031,30]
[391689440,1760729461624,-101.35684669,0.00032031,30]
[391689441,1760729461633,-151.0,0.00032031,30]
[391689442,1760729461643,-151.0,0.0004,120]
[391689443,1760729461652,-297.945712,0.0004,120]
[391689444,1760729461662,-283.264368,0.0004,120]
[391689445,1760729461672,-621.682268,0.0004,30]
[391689446,1760729461682,-749.0,0.00042029,2]
[391689447,1760729461692,-297.945712,0.00043444,120]
[391689448,1760729461701,-151.0,0.00043444,120]
[391689449,1760729461710,-297.945712,0.00043444,120]
[391689450,1760729461719,-283.264368,0.00043444,120]
[391689451,1760729461729,-500.0,0.00043835,120]
[391689452,1760729461738,-500.0,0.00043835,120]
[391689453,1760729461749,-500.0,0.00044109,120]
[391689454,1760729461760,-500.0,0.00044383,120]
[391689455,1760729461769,-403826.48279603,0.00044592,2]
[391689456,1760729461780,-2032.2827596,0.00044592,2]
[391689457,1760729461789,-51920.8050418,0.00044592,2]
[391689458,1760729461798,-266.869916,0.00044592,120]
[391689459,1760729461808,-151.0,0.00044592,120]
[391689460,1760729461818,-151.0,0.00044592,120]
[391689461,1760729461827,-266.869916,0.00044592,120]
[391689462,1760729461837,-266.869916,0.00044592,120]
[391689463,1760729461847,-396.241571,0.00044592,120]
[391689464,1760729461856,-266.869916,0.00044592,120]
[391689465,1760729461866,-396.241571,0.00044592,120]
[391689466,1760729461875,-151.0,0.00044592,120]
[391689467,1760729461885,-396.241571,0.00044592,120]
[391689468,1760729461895,-396.241571,0.00044592,120]
[391689469,1760729461906,-401.31693,0.00044592,120]
[391689470,1760729461915,-151.0,0.00044592,120]
[391689471,1760729461925,-401.31693,0.00044592,120]
[391689472,1760729461934,-151.0,0.00044592,120]
[391689473,1760729461944,-401.31693,0.00044592,120]
[391689474,1760729461955,-401.31693,0.00044592,120]
[391689475,1760729461965,-151.0,0.00044592,120]
[391689476,1760729461975,-151.0,0.00044592,120]
[391689477,1760729461985,-1879.6026618,0.00044592,2]
[391689478,1760729461995,-151.0,0.00044592,120]
[391689479,1760729462005,-151.0,0.00044592,120]
[391689480,1760729462014,-151.0,0.00044592,120]
[391689481,1760729462024,-151.0,0.00044592,120]
[391689482,1760729462034,-151.0,0.00044592,120]
[391689483,1760729462044,-179.012348,0.00044592,120]
[391689484,1760729462054,-5849.9616096,0.00044592,2]
[391689485,1760729462064,-150.0,0.00044595,30]
[391689486,1760729462073,-163.74044726,0.00044603,2]
[391689487,1760729462083,-730.0,0.00044603,2]
[391689488,1760729462093,-1982.0,0.00044603,2]
[391689489,1760729462104,-500.0,0.00044603,2]
[391689490,1760729462114,-1152.0,0.00044603,2]
[391689491,1760729462124,-150.0,0.0004464,30]
[391689492,1760729462134,-150.0,0.0004464,30]
[391689493,1760729462143,-150.0,0.0004464,30]
[391689494,1760729462155,-828.368429,0.0004465,2]
[391689495,1760729462164,-500.0,0.00044657,120]
[391689496,1760729462175,-500.0,0.00044657,120]
[391689497,1760729462185,-500.0,0.00044657,120]
[391689498,1760729462195,-500.0,0.00044657,120]
[391689499,1760729462204,-500.0,0.00044657,120]
[391689500,1760729462214,-500.0,0.00044657,120]
[391689501,1760729462224,-500.0,0.00044657,120]
[391689502,1760729462233,-290.64,0.00044657,120]
[391689503,1760729462243,-500.0,0.00044657,120]
[391689504,1760729462252,-246.15,0.00044657,120]
[391689505,1760729462261,-500.0,0.00044657,120]
[391689506,1760729462271,-500.0,0.00044657,120]
[391689507,1760729462280,-500.0,0.00044657,120]
[391689508,1760729462290,-500.0,0.00044657,120]
[391689509,1760729462299,-500.0,0.00044657,120]
[391689510,1760729462309,-500.0,0.00044657,120]
[391689511,1760729462318,-500.0,0.00044657,120]
[391689512,1760729462328,-500.0,0.00044657,120]
[391689513,1760729462338,-500.0,0.00044657,120]
[391689514,1760729462348,-500.0,0.00044657,120]
[391689515,1760729462357,-500.0,0.00044657,120]
[391689516,1760729462367,-500.0,0.00044657,120]
[391689517,1760729462376,-500.0,0.00044657,120]
[391689518,1760729462385,-500.0,0.00044657,120]
[391689519,1760729462395,-500.0,0.00044657,120]
[391689520,1760729462404,-397.1,0.00044657,120]
[391689521,1760729462414,-500.0,0.00044657,7]
[391689522,1760729462427,-500.0,0.00044657,120]
[391689523,1760729462436,-500.0,0.00044657,120]
[391689524,1760729462446,-500.0,0.00044657,120]
[391689525,1760729462455,-500.0,0.00044657,120]
[391689526,1760729462465,-500.0,0.00044657,120]
[391689527,1760729462475,-490.0,0.00044657,120]
[391689528,1760729462484,-500.0,0.00044657,120]
[391689529,1760729462494,-500.0,0.00044657,120]
[391689530,1760729462507,-500.0,0.00044657,2]
[391689531,1760729462516,-842.71,0.00044657,120]
[391689532,1760729462526,-500.0,0.00044657,120]
[391689533,1760729462535,-233.3415576,0.00044657,120]
[391689534,1760729462544,-500.0,0.00044657,120]
[391689535,1760729462553,-500.0,0.00044657,120]
[391689536,1760729462562,-568.23,0.00044657,120]
[391689537,1760729462571,-500.0,0.00044657,2]
[391689538,1760729462715,-500.0,0.00044657,2]
[391689539,1760729462726,-500.0,0.00044657,120]
[391689540,1760729462735,-500.0,0.00044657,120]
[391689541,1760729462745,-500.0,0.00044657,120]
[391689542,1760729462755,-514.4,0.00044657,120]
[391689543,1760729462765,-500.0,0.00044657,120]
[391689544,1760729462775,-206.0,0.00044657,120]
[391689545,1760729462785,-500.0,0.00044657,6]
[391689546,1760729462795,-500.0,0.00044657,120]
[391689547,1760729462804,-500.0,0.00044657,120]
[391689548,1760729462814,-500.0,0.00044657,120]
[391689549,1760729462824,-500.0,0.00044657,120]
[391689550,1760729462834,-500.0,0.00044657,120]
[391689551,1760729462843,-620.58,0.00044657,120]
[391689552,1760729462853,-500.0,0.00044657,14]
[391689553,1760729462863,-500.0,0.00044657,120]
[391689554,1760729462872,-500.0,0.00044657,120]
[391689555,1760729462884,-500.0,0.00044657,60]